[Event "*** Titled Tuesday Blitz"]
[Site "Chess.com"]
[Date "2020.02.04"]
[Round "2"]
[White "Teidi96"]
[Black "Kislov_Oleg"]
[Result "0-1"]
[WhiteElo "2296"]
[BlackElo "2516"]
[TimeControl "180+2"]
[EndTime "13:26:15 PST"]
[Termination "Kislov_Oleg won by resignation"]

1. e4 {[%clk 0:03:01.9]} 1... e6 {[%clk 0:03:00.4]} 2. d4 {[%clk 0:03:02.3]}
2... d5 {[%clk 0:03:01.4]} 3. Nd2 {[%clk 0:03:04.2]} 3... Nf6 {[%clk 0:03:02.1]}
4. e5 {[%clk 0:03:05.1]} 4... Nfd7 {[%clk 0:03:03.6]} 5. Bd3 {[%clk 0:03:07]}
5... c5 {[%clk 0:03:04.8]} 6. c3 {[%clk 0:03:08.9]} 6... Nc6 {[%clk 0:03:05.9]}
7. Ne2 {[%clk 0:03:10.5]} 7... cxd4 {[%clk 0:03:06.9]} 8. cxd4 {[%clk
0:03:12.4]} 8... f6 {[%clk 0:03:08.5]} 9. exf6 {[%clk 0:03:14.3]} 9... Nxf6
{[%clk 0:03:10.1]} 10. Nf3 {[%clk 0:03:15.8]} 10... Bd6 {[%clk 0:03:10.6]} 11.
O-O {[%clk 0:03:17.5]} 11... O-O {[%clk 0:03:11.4]} 12. Bf4 {[%clk 0:03:18.7]}
12... Bxf4 {[%clk 0:03:11.7]} 13. Nxf4 {[%clk 0:03:20.6]} 13... Qd6 {[%clk
0:03:10.2]} 14. Ne2 {[%clk 0:02:54.2]} 14... e5 {[%clk 0:03:10.6]} 15. dxe5
{[%clk 0:02:55.3]} 15... Nxe5 {[%clk 0:03:11.4]} 16. Nxe5 {[%clk 0:02:56.9]}
16... Qxe5 {[%clk 0:03:13.3]} 17. Qd2 {[%clk 0:02:48.4]} 17... Ng4 {[%clk
0:03:01.5]} 18. Ng3 {[%clk 0:02:46.7]} 18... Kh8 {[%clk 0:02:48.7]} 19. Rae1
{[%clk 0:02:43]} 19... Qf6 {[%clk 0:02:48.1]} 20. Qe2 {[%clk 0:02:21.6]} 20...
Bd7 {[%clk 0:02:08.3]} 21. Qe7 {[%clk 0:02:13.8]} 21... Rf7 {[%clk 0:02:01.7]}
22. Qxf6 {[%clk 0:02:08.8]} 22... Nxf6 {[%clk 0:02:03.6]} 23. Rc1 {[%clk
0:01:57.1]} 23... Bc6 {[%clk 0:01:57]} 24. Rfe1 {[%clk 0:01:53.4]} 24... g6
{[%clk 0:01:52.5]} 25. b4 {[%clk 0:01:52.9]} 25... a6 {[%clk 0:01:46.5]} 26. f3
{[%clk 0:01:44.4]} 26... Kg7 {[%clk 0:01:45.9]} 27. Re6 {[%clk 0:01:36.7]} 27...
Re8 {[%clk 0:01:28.6]} 28. Rce1 {[%clk 0:01:35.9]} 28... Kf8 {[%clk 0:01:15.4]}
29. Nf1 {[%clk 0:00:56.9]} 29... d4 {[%clk 0:00:58.5]} 30. Rxe8+ {[%clk
0:00:51.8]} 30... Bxe8 {[%clk 0:00:50.9]} 31. Rc1 {[%clk 0:00:44.9]} 31... Nd5
{[%clk 0:00:46]} 32. a3 {[%clk 0:00:26]} 32... Nc3 {[%clk 0:00:43.1]} 33. Nd2
{[%clk 0:00:26.1]} 33... Ba4 {[%clk 0:00:26.3]} 34. Ne4 {[%clk 0:00:24.9]} 34...
Rc7 {[%clk 0:00:22.8]} 35. Kf1 {[%clk 0:00:21.3]} 35... Ke7 {[%clk 0:00:23.3]}
36. Nxc3 {[%clk 0:00:17.8]} 36... dxc3 {[%clk 0:00:23.6]} 37. Ke2 {[%clk
0:00:17.9]} 37... Kd6 {[%clk 0:00:24.8]} 38. Be4 {[%clk 0:00:18.6]} 38... Ke5
{[%clk 0:00:23.5]} 39. Ke3 {[%clk 0:00:19.9]} 39... g5 {[%clk 0:00:23.8]} 40. g3
{[%clk 0:00:20.6]} 40... h6 {[%clk 0:00:24.2]} 41. f4+ {[%clk 0:00:21.8]} 41...
gxf4+ {[%clk 0:00:26.1]} 42. gxf4+ {[%clk 0:00:23.7]} 42... Kf6 {[%clk
0:00:27.3]} 43. Bc2 {[%clk 0:00:22.5]} 43... Bxc2 {[%clk 0:00:23]} 44. Rxc2
{[%clk 0:00:24.4]} 44... Kf5 {[%clk 0:00:24.5]} 45. h3 {[%clk 0:00:23.7]} 45...
b5 {[%clk 0:00:25.1]} 46. Kf3 {[%clk 0:00:22.7]} 46... Rc4 {[%clk 0:00:26.2]}
47. Kg3 {[%clk 0:00:21.5]} 47... Ke4 {[%clk 0:00:24.8]} 48. f5 {[%clk 0:00:15]}
48... Kd3 {[%clk 0:00:21.7]} 49. Rc1 {[%clk 0:00:11.9]} 49... Kd2 {[%clk
0:00:22.5]} 50. Rf1 {[%clk 0:00:11.9]} 50... c2 {[%clk 0:00:23.9]} 51. f6 {[%clk
0:00:13.4]} 51... c1=Q {[%clk 0:00:17.5]} 52. Rf2+ {[%clk 0:00:12.3]} 52... Ke3
{[%clk 0:00:17.9]} 53. Rf3+ {[%clk 0:00:12.7]} 53... Ke4 {[%clk 0:00:19.1]} 54.
f7 {[%clk 0:00:11.4]} 0-1

[Event "*** Titled Tuesday Blitz"]
[Site "Chess.com"]
[Date "2020.02.04"]
[Round "2"]
[White "semchik73"]
[Black "ehrenfeld"]
[Result "1/2-1/2"]
[WhiteElo "2297"]
[BlackElo "2503"]
[TimeControl "180+2"]
[EndTime "13:26:15 PST"]
[Termination "Game drawn - insufficient material"]

1. Nf3 {[%clk 0:03:01.9]} 1... f5 {[%clk 0:03:00.1]} 2. e4 {[%clk 0:03:02.3]}
2... fxe4 {[%clk 0:03:00.8]} 3. Ng5 {[%clk 0:03:03.4]} 3... Nc6 {[%clk
0:02:57.4]} 4. d3 {[%clk 0:02:58.5]} 4... e3 {[%clk 0:02:57.3]} 5. Bxe3 {[%clk
0:02:57.5]} 5... e5 {[%clk 0:02:57.9]} 6. Be2 {[%clk 0:02:45.3]} 6... Nf6 {[%clk
0:02:31.6]} 7. Nc3 {[%clk 0:02:38.2]} 7... Bb4 {[%clk 0:02:28.8]} 8. a3 {[%clk
0:02:35.5]} 8... Bxc3+ {[%clk 0:02:29.5]} 9. bxc3 {[%clk 0:02:36.4]} 9... O-O
{[%clk 0:02:29.9]} 10. O-O {[%clk 0:02:35.2]} 10... d5 {[%clk 0:02:29.7]} 11. f4
{[%clk 0:02:26.7]} 11... Qe7 {[%clk 0:02:11.6]} 12. Qd2 {[%clk 0:02:19.8]} 12...
h6 {[%clk 0:01:59.8]} 13. Nf3 {[%clk 0:02:19.7]} 13... exf4 {[%clk 0:01:25.1]}
14. Bxf4 {[%clk 0:02:19.8]} 14... Bf5 {[%clk 0:01:21.8]} 15. Rae1 {[%clk
0:02:15.7]} 15... Qd7 {[%clk 0:01:17.3]} 16. Nd4 {[%clk 0:02:11.2]} 16... Nxd4
{[%clk 0:01:17.6]} 17. cxd4 {[%clk 0:02:11.9]} 17... Bg4 {[%clk 0:01:11.2]} 18.
Bxg4 {[%clk 0:02:06.6]} 18... Nxg4 {[%clk 0:01:11.3]} 19. h3 {[%clk 0:02:08]}
19... Nf6 {[%clk 0:01:10.9]} 20. c4 {[%clk 0:02:02.8]} 20... c6 {[%clk
0:01:05.3]} 21. Be5 {[%clk 0:02:00.5]} 21... Nh7 {[%clk 0:01:06]} 22. Qe3 {[%clk
0:01:53.5]} 22... Rxf1+ {[%clk 0:01:05.8]} 23. Rxf1 {[%clk 0:01:53.9]} 23... Rf8
{[%clk 0:01:06.6]} 24. Rxf8+ {[%clk 0:01:49.2]} 24... Nxf8 {[%clk 0:01:07.2]}
25. Qg3 {[%clk 0:01:50.4]} 25... Ne6 {[%clk 0:01:02]} 26. Qg4 {[%clk 0:01:48.1]}
26... Qf7 {[%clk 0:00:57.9]} 27. Qd1 {[%clk 0:01:40.2]} 27... Kh7 {[%clk
0:00:53.3]} 28. Qb3 {[%clk 0:01:40.4]} 28... Nf8 {[%clk 0:00:36]} 29. Bd6 {[%clk
0:01:34.8]} 29... Ng6 {[%clk 0:00:35.6]} 30. cxd5 {[%clk 0:01:21.1]} 30... Qxd5
{[%clk 0:00:28.7]} 31. Qxd5 {[%clk 0:01:21.5]} 31... cxd5 {[%clk 0:00:29.9]} 32.
g3 {[%clk 0:01:22.4]} 32... Kg8 {[%clk 0:00:30.7]} 33. Kf2 {[%clk 0:01:22]}
33... Kf7 {[%clk 0:00:31.8]} 34. Kf3 {[%clk 0:01:19.3]} 34... Ke6 {[%clk
0:00:32.7]} 35. Bb4 {[%clk 0:01:16.6]} 35... Ne7 {[%clk 0:00:33.8]} 36. Kf4
{[%clk 0:01:14.9]} 36... g6 {[%clk 0:00:34.7]} 37. h4 {[%clk 0:01:14.4]} 37...
Nf5 {[%clk 0:00:32.4]} 38. Bc3 {[%clk 0:01:14.4]} 38... b5 {[%clk 0:00:32.5]}
39. Bb2 {[%clk 0:01:05.5]} 39... a5 {[%clk 0:00:32]} 40. Bc3 {[%clk 0:01:06.2]}
40... a4 {[%clk 0:00:30.6]} 41. Bb2 {[%clk 0:01:07.1]} 41... Ne7 {[%clk
0:00:30.5]} 42. g4 {[%clk 0:01:05.2]} 42... Nc6 {[%clk 0:00:28.4]} 43. h5 {[%clk
0:01:04.2]} 43... gxh5 {[%clk 0:00:24.6]} 44. gxh5 {[%clk 0:01:04.7]} 44... b4
{[%clk 0:00:25.7]} 45. Ke3 {[%clk 0:00:55.6]} 45... bxa3 {[%clk 0:00:24.6]} 46.
Bxa3 {[%clk 0:00:56.2]} 46... Kf5 {[%clk 0:00:25.5]} 47. Bf8 {[%clk 0:00:55.4]}
47... Kg5 {[%clk 0:00:26]} 48. Kd2 {[%clk 0:00:53.1]} 48... Nxd4 {[%clk
0:00:22.9]} 49. Kc3 {[%clk 0:00:52.8]} 49... Ne6 {[%clk 0:00:23.8]} 50. Bd6
{[%clk 0:00:51.4]} 50... Kxh5 {[%clk 0:00:24.6]} 51. Kb4 {[%clk 0:00:52.7]}
51... Kg4 {[%clk 0:00:23]} 52. Kxa4 {[%clk 0:00:53.8]} 52... h5 {[%clk 0:00:24]}
53. Kb5 {[%clk 0:00:55.1]} 53... h4 {[%clk 0:00:24.7]} 54. Bh2 {[%clk
0:00:54.6]} 54... Kf3 {[%clk 0:00:15.5]} 55. Kc6 {[%clk 0:00:54.1]} 55... d4
{[%clk 0:00:15.6]} 56. Kd5 {[%clk 0:00:54.5]} 56... Ke3 {[%clk 0:00:15]} 57.
Kxe6 {[%clk 0:00:47]} 57... Kxd3 {[%clk 0:00:16]} 58. Kf5 {[%clk 0:00:48.3]}
58... Ke2 {[%clk 0:00:14.1]} 59. Kg4 {[%clk 0:00:49.4]} 59... d3 {[%clk
0:00:13.6]} 60. Bf4 {[%clk 0:00:50.7]} 60... d2 {[%clk 0:00:12.5]} 61. Bxd2
{[%clk 0:00:51.5]} 61... Kxd2 {[%clk 0:00:13.7]} 62. Kxh4 {[%clk 0:00:52.9]}
1/2-1/2

[Event "*** Titled Tuesday Blitz"]
[Site "Chess.com"]
[Date "2020.02.04"]
[Round "2"]
[White "Mikhail_Golubev"]
[Black "GMKrikor"]
[Result "0-1"]
[WhiteElo "2552"]
[BlackElo "2818"]
[TimeControl "180+2"]
[EndTime "13:26:22 PST"]
[Termination "GMKrikor won by resignation"]

1. e4 {[%clk 0:03:01.9]} 1... c5 {[%clk 0:03:00.8]} 2. Nf3 {[%clk 0:03:02.6]}
2... g6 {[%clk 0:03:02.3]} 3. Nc3 {[%clk 0:03:01.9]} 3... Nc6 {[%clk 0:03:03]}
4. d4 {[%clk 0:03:02.4]} 4... cxd4 {[%clk 0:03:04.9]} 5. Nxd4 {[%clk 0:03:03.3]}
5... Bg7 {[%clk 0:03:06.6]} 6. Be3 {[%clk 0:03:04]} 6... Nf6 {[%clk 0:03:08.1]}
7. Nxc6 {[%clk 0:03:04.9]} 7... bxc6 {[%clk 0:03:08.9]} 8. e5 {[%clk 0:03:05.9]}
8... Ng8 {[%clk 0:03:10.3]} 9. Bd4 {[%clk 0:03:05.5]} 9... Qc7 {[%clk 0:03:09]}
10. Qe2 {[%clk 0:02:39.2]} 10... f6 {[%clk 0:03:07.3]} 11. f4 {[%clk 0:02:32.3]}
11... fxe5 {[%clk 0:03:05]} 12. fxe5 {[%clk 0:02:22.9]} 12... Nh6 {[%clk
0:03:06.1]} 13. g4 {[%clk 0:01:44.1]} 13... Nf7 {[%clk 0:03:06.8]} 14. e6 {[%clk
0:01:37.5]} 14... Bxd4 {[%clk 0:03:08]} 15. exf7+ {[%clk 0:01:31.9]} 15... Kf8
{[%clk 0:03:09.2]} 16. O-O-O {[%clk 0:01:20]} 16... Qe5 {[%clk 0:03:09.9]} 17.
Rxd4 {[%clk 0:01:03.6]} 17... Qxd4 {[%clk 0:03:08.8]} 18. Bg2 {[%clk 0:01:04.2]}
18... d5 {[%clk 0:02:44.8]} 19. Re1 {[%clk 0:01:00.7]} 19... e5 {[%clk
0:02:38.5]} 20. Qf1 {[%clk 0:00:43.3]} 20... Bxg4 {[%clk 0:02:24.4]} 21. Be4
{[%clk 0:00:13.4]} 21... Bf5 {[%clk 0:02:06.5]} 22. Bxf5 {[%clk 0:00:13.9]}
22... gxf5 {[%clk 0:02:07.7]} 23. Qh3 {[%clk 0:00:12.6]} 23... h5 {[%clk
0:01:32.4]} 24. Rf1 {[%clk 0:00:12.6]} 24... Qg4 {[%clk 0:01:27.3]} 25. Qe3
{[%clk 0:00:11.6]} 25... e4 {[%clk 0:00:32.9]} 26. Qc5+ {[%clk 0:00:10.8]} 26...
Kxf7 {[%clk 0:00:33.8]} 27. Qxc6 {[%clk 0:00:11.9]} 27... Rhe8 {[%clk
0:00:18.2]} 28. Nxd5 {[%clk 0:00:11.4]} 28... Qg5+ {[%clk 0:00:19.8]} 29. Kb1
{[%clk 0:00:11.5]} 29... Rad8 {[%clk 0:00:21.4]} 30. Qc7+ {[%clk 0:00:11]} 30...
Kf8 {[%clk 0:00:18.5]} 31. Qc5+ {[%clk 0:00:09.8]} 31... Kf7 {[%clk 0:00:16.5]}
32. Rg1 {[%clk 0:00:11]} 32... Qxg1+ {[%clk 0:00:14.8]} 33. Qxg1 {[%clk
0:00:11.1]} 33... Rxd5 {[%clk 0:00:16.5]} 34. c4 {[%clk 0:00:05.3]} 34... Rde5
{[%clk 0:00:17.1]} 35. Qxa7+ {[%clk 0:00:04.6]} 35... R8e7 {[%clk 0:00:17.3]}
36. Qe3 {[%clk 0:00:06]} 36... Rd7 {[%clk 0:00:18.8]} 37. Qg5 {[%clk 0:00:06]}
37... e3 {[%clk 0:00:16.5]} 38. Qxh5+ {[%clk 0:00:07.2]} 38... Ke7 {[%clk
0:00:17.8]} 39. Qh4+ {[%clk 0:00:07.4]} 39... Ke6 {[%clk 0:00:17]} 40. Qh6+
{[%clk 0:00:07.8]} 40... Ke7 {[%clk 0:00:18.6]} 41. Qh4+ {[%clk 0:00:08.7]}
41... Kd6 {[%clk 0:00:20.1]} 42. Qf6+ {[%clk 0:00:08.9]} 42... Re6 {[%clk
0:00:21.7]} 43. Qd4+ {[%clk 0:00:09.3]} 43... Kc7 {[%clk 0:00:21.5]} 44. Qa7+
{[%clk 0:00:09.8]} 44... Kd8 {[%clk 0:00:22.4]} 45. Qb8+ {[%clk 0:00:08.2]}
45... Ke7 {[%clk 0:00:23.5]} 46. Qb4+ {[%clk 0:00:08.7]} 46... Kf7 {[%clk
0:00:22.8]} 47. Qc5 {[%clk 0:00:09.7]} 47... e2 {[%clk 0:00:18.2]} 48. Qxf5+
{[%clk 0:00:10]} 48... Ke7 {[%clk 0:00:19.9]} 49. Qg5+ {[%clk 0:00:11.1]} 49...
Kd6 {[%clk 0:00:20]} 50. Qd5+ {[%clk 0:00:11.5]} 50... Kc7 {[%clk 0:00:21.7]}
51. Qxe6 {[%clk 0:00:12.3]} 51... Rd1+ {[%clk 0:00:22.6]} 52. Kc2 {[%clk
0:00:13.2]} 52... e1=Q {[%clk 0:00:24.5]} 53. Qf7+ {[%clk 0:00:14.3]} 53... Rd7
{[%clk 0:00:23.8]} 54. Qf4+ {[%clk 0:00:14.9]} 54... Kd8 {[%clk 0:00:22.4]} 55.
Qb8+ {[%clk 0:00:14.1]} 55... Ke7 {[%clk 0:00:23]} 56. a3 {[%clk 0:00:15.1]}
56... Qd1+ {[%clk 0:00:21.1]} 0-1

[Event "*** Titled Tuesday Blitz"]
[Site "Chess.com"]
[Date "2020.02.04"]
[Round "2"]
[White "ShahMatKanal"]
[Black "norwaytoadog"]
[Result "1-0"]
[WhiteElo "2515"]
[BlackElo "2293"]
[TimeControl "180+2"]
[EndTime "13:26:22 PST"]
[Termination "ShahMatKanal won by resignation"]

1. e4 {[%clk 0:03:01.9]} 1... e5 {[%clk 0:03:00.3]} 2. Nc3 {[%clk 0:02:59.6]}
2... Nf6 {[%clk 0:03:00.3]} 3. g3 {[%clk 0:02:56.1]} 3... d5 {[%clk 0:03:00.4]}
4. exd5 {[%clk 0:02:53.3]} 4... Nxd5 {[%clk 0:03:01.7]} 5. Bg2 {[%clk
0:02:53.2]} 5... Nxc3 {[%clk 0:03:03]} 6. bxc3 {[%clk 0:02:55.1]} 6... Nc6
{[%clk 0:03:04.1]} 7. d3 {[%clk 0:02:54]} 7... Bc5 {[%clk 0:03:04.9]} 8. Ne2
{[%clk 0:02:54.2]} 8... O-O {[%clk 0:03:05.3]} 9. O-O {[%clk 0:02:55.3]} 9...
Bb6 {[%clk 0:02:59.9]} 10. Be3 {[%clk 0:02:43.4]} 10... Bg4 {[%clk 0:02:57.8]}
11. h3 {[%clk 0:02:42.3]} 11... Bf5 {[%clk 0:02:49.8]} 12. g4 {[%clk 0:02:38.6]}
12... Bg6 {[%clk 0:02:41]} 13. Ng3 {[%clk 0:02:39.6]} 13... Qh4 {[%clk
0:02:35.1]} 14. Qd2 {[%clk 0:02:37.2]} 14... h6 {[%clk 0:02:30.4]} 15. Kh2
{[%clk 0:02:31]} 15... Rad8 {[%clk 0:02:24.4]} 16. Rae1 {[%clk 0:02:25.9]} 16...
Rfe8 {[%clk 0:01:44.8]} 17. Qc1 {[%clk 0:02:15.2]} 17... Ba5 {[%clk 0:01:40.6]}
18. Qa3 {[%clk 0:02:06.1]} 18... Qe7 {[%clk 0:01:35.1]} 19. Bc5 {[%clk
0:01:42.2]} 19... Qd7 {[%clk 0:01:30.1]} 20. Bxc6 {[%clk 0:00:52.2]} 20... Qxc6
{[%clk 0:01:31.1]} 21. Qxa5 {[%clk 0:00:53.4]} 21... b6 {[%clk 0:01:23.1]} 22.
Qa3 {[%clk 0:00:42.9]} 22... bxc5 {[%clk 0:01:23.9]} 23. c4 {[%clk 0:00:31.7]}
23... a5 {[%clk 0:01:17]} 24. Ne4 {[%clk 0:00:29]} 24... Bxe4 {[%clk 0:01:12.5]}
25. Rxe4 {[%clk 0:00:29.7]} 25... Rd4 {[%clk 0:01:12.1]} 26. Rfe1 {[%clk
0:00:28.4]} 26... Rxe4 {[%clk 0:01:10.2]} 27. Rxe4 {[%clk 0:00:30.3]} 27... g6
{[%clk 0:01:09.1]} 28. Qxa5 {[%clk 0:00:25]} 28... f5 {[%clk 0:01:08.3]} 29.
gxf5 {[%clk 0:00:24.3]} 29... gxf5 {[%clk 0:01:09.5]} 30. Re1 {[%clk 0:00:24.2]}
30... Kf7 {[%clk 0:01:05.4]} 31. Qd2 {[%clk 0:00:17]} 31... Qf3 {[%clk
0:00:54.9]} 32. Qe3 {[%clk 0:00:13.9]} 32... Qc6 {[%clk 0:00:40.4]} 33. Rg1
{[%clk 0:00:14.3]} 33... e4 {[%clk 0:00:39.5]} 34. Qg3 {[%clk 0:00:12.7]} 34...
Qd6 {[%clk 0:00:38.3]} 35. Rc1 {[%clk 0:00:03.3]} 35... f4 {[%clk 0:00:36.4]}
36. Qg4 {[%clk 0:00:03.5]} 36... Rg8 {[%clk 0:00:34.3]} 37. Qf5+ {[%clk
0:00:03.6]} 37... Ke8 {[%clk 0:00:30.4]} 38. Qxe4+ {[%clk 0:00:03.7]} 38... Kd7
{[%clk 0:00:29.3]} 39. Qf5+ {[%clk 0:00:04.2]} 39... Kd8 {[%clk 0:00:26.1]} 40.
Rg1 {[%clk 0:00:03]} 40... f3+ {[%clk 0:00:26.4]} 41. Kh1 {[%clk 0:00:04.1]}
41... Rf8 {[%clk 0:00:19.2]} 42. Qe4 {[%clk 0:00:03.9]} 42... Qd7 {[%clk
0:00:16.9]} 43. Qa8+ {[%clk 0:00:04.2]} 43... Ke7 {[%clk 0:00:18]} 44. Rg7+
{[%clk 0:00:04.6]} 44... Rf7 {[%clk 0:00:16.2]} 45. Qe4+ {[%clk 0:00:05.7]}
45... Kf8 {[%clk 0:00:16.2]} 46. Rxf7+ {[%clk 0:00:04.4]} 46... Qxf7 {[%clk
0:00:15.4]} 47. Kh2 {[%clk 0:00:03.6]} 47... Qh5 {[%clk 0:00:11.8]} 48. Qf4+
{[%clk 0:00:03.5]} 48... Ke8 {[%clk 0:00:10.4]} 49. Kg3 {[%clk 0:00:05.4]} 49...
Ke7 {[%clk 0:00:07.4]} 50. Qh4+ {[%clk 0:00:05.5]} 50... Qxh4+ {[%clk
0:00:07.5]} 51. Kxh4 {[%clk 0:00:07.4]} 51... Kf6 {[%clk 0:00:07.5]} 52. Kg4
{[%clk 0:00:08.6]} 52... Ke5 {[%clk 0:00:08.4]} 53. a4 {[%clk 0:00:09.9]} 53...
Kd4 {[%clk 0:00:09.6]} 54. a5 {[%clk 0:00:11.1]} 54... Kc3 {[%clk 0:00:09.7]}
55. a6 {[%clk 0:00:12.1]} 55... Kd2 {[%clk 0:00:08]} 56. a7 {[%clk 0:00:13]}
56... Ke2 {[%clk 0:00:09]} 57. a8=Q {[%clk 0:00:14]} 1-0

[Event "*** Titled Tuesday Blitz"]
[Site "Chess.com"]
[Date "2020.02.04"]
[Round "2"]
[White "enriquetejedor"]
[Black "Walter_White_Poland"]
[Result "1/2-1/2"]
[WhiteElo "2473"]
[BlackElo "2246"]
[TimeControl "180+2"]
[EndTime "13:26:27 PST"]
[Termination "Game drawn - insufficient material"]

1. d4 {[%clk 0:03:00.7]} 1... Nf6 {[%clk 0:03:00.1]} 2. c4 {[%clk 0:02:57.1]}
2... c5 {[%clk 0:03:00.2]} 3. d5 {[%clk 0:02:55.4]} 3... e6 {[%clk 0:03:01.3]}
4. Nc3 {[%clk 0:02:54.4]} 4... exd5 {[%clk 0:03:02.9]} 5. cxd5 {[%clk
0:02:54.8]} 5... d6 {[%clk 0:03:04.6]} 6. Nf3 {[%clk 0:02:49.1]} 6... g6 {[%clk
0:03:06]} 7. h3 {[%clk 0:02:43.3]} 7... Bg7 {[%clk 0:03:05.7]} 8. e4 {[%clk
0:02:41.7]} 8... O-O {[%clk 0:03:06.4]} 9. Be2 {[%clk 0:02:20.3]} 9... b5 {[%clk
0:02:56.1]} 10. Bxb5 {[%clk 0:02:18.8]} 10... Nxe4 {[%clk 0:02:55.1]} 11. Nxe4
{[%clk 0:02:20.7]} 11... Qa5+ {[%clk 0:02:56]} 12. Bd2 {[%clk 0:02:22.4]} 12...
Qxb5 {[%clk 0:02:55.9]} 13. Nxd6 {[%clk 0:02:24]} 13... Qa6 {[%clk 0:02:18.2]}
14. Nxc8 {[%clk 0:02:18.6]} 14... Re8+ {[%clk 0:01:43.3]} 15. Be3 {[%clk
0:02:16.1]} 15... Bxb2 {[%clk 0:01:37.9]} 16. Rb1 {[%clk 0:01:28.1]} 16... Bc3+
{[%clk 0:01:36.1]} 17. Nd2 {[%clk 0:01:25.1]} 17... Nd7 {[%clk 0:00:38.6]} 18.
Qe2 {[%clk 0:01:00.6]} 18... Bxd2+ {[%clk 0:00:33.3]} 19. Qxd2 {[%clk
0:00:51.9]} 19... Raxc8 {[%clk 0:00:15.8]} 20. Qe2 {[%clk 0:00:48.3]} 20... Qd6
{[%clk 0:00:06]} 21. O-O {[%clk 0:00:43.6]} 21... Qxd5 {[%clk 0:00:06]} 22. Rfd1
{[%clk 0:00:44.7]} 22... Qe6 {[%clk 0:00:07]} 23. Rb7 {[%clk 0:00:45]} 23... Ne5
{[%clk 0:00:07.4]} 24. Rxa7 {[%clk 0:00:44.7]} 24... c4 {[%clk 0:00:08.3]} 25.
Bd4 {[%clk 0:00:41.5]} 25... Nc6 {[%clk 0:00:06]} 26. Qxe6 {[%clk 0:00:37.9]}
26... Rxe6 {[%clk 0:00:07.2]} 27. Rd7 {[%clk 0:00:38.8]} 27... Nxd4 {[%clk
0:00:08]} 28. R7xd4 {[%clk 0:00:38.6]} 28... c3 {[%clk 0:00:09.3]} 29. Rd8+
{[%clk 0:00:36.1]} 29... Rxd8 {[%clk 0:00:09.5]} 30. Rxd8+ {[%clk 0:00:38]}
30... Kg7 {[%clk 0:00:10.6]} 31. Rc8 {[%clk 0:00:38.8]} 31... Ra6 {[%clk
0:00:11.3]} 32. Rxc3 {[%clk 0:00:40.1]} 32... Rxa2 {[%clk 0:00:10.8]} 33. Rf3
{[%clk 0:00:42]} 33... Ra4 {[%clk 0:00:11]} 34. Kh2 {[%clk 0:00:43.3]} 34... h5
{[%clk 0:00:11.3]} 35. Kg3 {[%clk 0:00:44.2]} 35... Rb4 {[%clk 0:00:12.3]} 36.
Rc3 {[%clk 0:00:45.3]} 36... Rd4 {[%clk 0:00:13]} 37. Rb3 {[%clk 0:00:46.5]}
37... Rc4 {[%clk 0:00:14.1]} 38. h4 {[%clk 0:00:46.6]} 38... Rd4 {[%clk
0:00:14.7]} 39. Kh3 {[%clk 0:00:47.4]} 39... Rc4 {[%clk 0:00:15.2]} 40. Ra3
{[%clk 0:00:47.5]} 40... Rd4 {[%clk 0:00:16.3]} 41. g3 {[%clk 0:00:48.5]} 41...
Rc4 {[%clk 0:00:16.5]} 42. Rd3 {[%clk 0:00:49.2]} 42... Re4 {[%clk 0:00:16.5]}
43. Kg2 {[%clk 0:00:51.1]} 43... Re5 {[%clk 0:00:16.6]} 44. Kf3 {[%clk
0:00:52.6]} 44... Re1 {[%clk 0:00:17.4]} 45. Re3 {[%clk 0:00:53.6]} 45... Rxe3+
{[%clk 0:00:17.2]} 46. Kxe3 {[%clk 0:00:55.5]} 46... Kf6 {[%clk 0:00:18.5]} 47.
Kf4 {[%clk 0:00:56.8]} 47... Kg7 {[%clk 0:00:10.4]} 48. Kg5 {[%clk 0:00:58.7]}
48... f6+ {[%clk 0:00:11.2]} 49. Kf4 {[%clk 0:00:54.2]} 49... Kf7 {[%clk
0:00:12.3]} 50. Ke4 {[%clk 0:00:49.3]} 50... Ke6 {[%clk 0:00:13]} 51. Kd4 {[%clk
0:00:49.7]} 51... g5 {[%clk 0:00:13.1]} 52. Ke4 {[%clk 0:00:48.4]} 52... f5+
{[%clk 0:00:07.1]} 53. Kd4 {[%clk 0:00:46.8]} 53... f4 {[%clk 0:00:02.2]} 54.
hxg5 {[%clk 0:00:05.3]} 54... fxg3 {[%clk 0:00:04.1]} 55. fxg3 {[%clk 0:00:06]}
55... Kf5 {[%clk 0:00:05.2]} 56. g6 {[%clk 0:00:07.9]} 56... Kxg6 {[%clk
0:00:06.4]} 57. Ke4 {[%clk 0:00:09]} 57... Kg5 {[%clk 0:00:08.2]} 58. Kf3 {[%clk
0:00:09.8]} 58... Kf5 {[%clk 0:00:09.8]} 59. Kf2 {[%clk 0:00:08.8]} 59... Kg4
{[%clk 0:00:11.7]} 60. Kg2 {[%clk 0:00:10.2]} 60... h4 {[%clk 0:00:12.8]} 61.
gxh4 {[%clk 0:00:12.1]} 61... Kxh4 {[%clk 0:00:14.1]} 1/2-1/2